Cogmind - Beta 16 @@@ ROGUE MODE // 2026.01.06 @ 04:34:25 Player: oberon720 Result: Destroyed by G-47 Trooper with Particle Gun Performance ------------- Evolutions (2) 1000 Regions Visited (5) 1000 Robots Destroyed (186) 930 Value Destroyed (4352) 4352 Prototype IDs (5) 100 Alien Tech Used (0) 0 Bonus (147) 147 TOTAL SCORE: 7529 Bonus ------- High Alert Combat Kills 147 Cogmind --------- Core Integrity 0/550 Matter 300/300 Energy 126/160 System Corruption 15% Temperature Cool (9) Movement Core (300) Ox5 Location -8/Storage Parts ------- > --- POWER (1) -------- Light Nuclear Core > --- PROPULSION (3) --- (None) > --- UTILITY (4) ------ Improved Heat Sink Melee Analysis Suite > --- WEAPON (3) ------- Great Maul Great Maul Great Maul > --- INVENTORY (5) ---- (None) Peak State ------------ > --- POWER ------------ Light Nuclear Core > --- PROPULSION ------- Light Treads Light Treads Improved Treads > --- UTILITY ---------- Melee Analysis Suite Melee Analysis Suite Improved Light Armor Plating Improved Light Armor Plating > --- WEAPON ----------- Great Maul Great Maul Great Maul > --- INVENTORY -------- Improved Heat Sink Heavy Armor Plating Improved Light Armor Plating Great Maul [Rating: 29] Favorites ----------- Power Ion Engine Engine Ion Engine Power Core Light Nuclear Core Propulsion Light Treads Treads Light Treads Leg Aluminum Leg Wheel Wheel Hover Unit Hover Unit Flight Unit Flight Unit Utility Melee Analysis Suite Device Heat Sink Storage Medium Matter Pod Processor Melee Analysis Suite Protection Hardened Light Armor Plating Weapon Great Maul Energy Gun Spread Laser Ballistic Gun Autogun Impact Weapon Great Maul Slashing Weapon Katana Build | -11 -10 -10 -9 -8 -8 ------- Run | Yrd Mat Min Mat Mat Sto Slots Evolved 4 | . . . 2 2 . Power . | . . . . . . Propulsion 1 | . . . . 1 . Utility 2 | . . . 1 1 . Weapon 1 | . . . 1 . . Parts Attached 87 | 5 9 5 39 20 9 Power 18 | 1 2 1 8 4 2 Engine 14 | 1 2 1 8 1 1 Core 4 | . . . . 3 1 Reactor . | . . . . . . Propulsion 28 | 2 1 2 14 6 3 Treads 16 | 2 1 . 6 4 3 Leg 2 | . . . . 2 . Wheel 3 | . . 2 1 . . Hover 2 | . . . 2 . . Flight 5 | . . . 5 . . Utility 24 | . 4 1 9 7 3 Device 8 | . 2 . 3 1 2 Storage 2 | . 2 . . . . Processor 3 | . . . 2 1 . Hackware . | . . . . . . Protection 11 | . . 1 4 5 1 Artifact . | . . . . . . Weapon 17 | 2 2 1 8 3 1 Energy Gun 7 | 1 1 1 4 . . Energy Cannon . | . . . . . . Ballistic Gun 3 | 1 1 . 1 . . Ballistic Cannon . | . . . . . . Launcher . | . . . . . . Special Weapon . | . . . . . . Impact Weapon 6 | . . . 2 3 1 Slashing Weapon 1 | . . . 1 . . Piercing Weapon . | . . . . . . Special Melee Weapon . | . . . . . . Unidentified Prototypes . | . . . . . . Corrupted Parts 3 | . . . 1 . 2 System Corruption 19 | . . . 4 . 15 Parts Lost 40 | . . 6 15 10 9 Power 11 | . . 2 4 3 2 Propulsion 16 | . . 2 6 4 4 Utility 10 | . . 1 3 3 3 Weapon 3 | . . 1 2 . . Highest Loss Streak 5 | . . 5 4 3 4 To Critical Strikes . | . . . . . . Average Backups 3 | . 3 4 2 3 2 Power . | . . . . . 1 Propulsion . | . . . . . . Utility 2 | . 2 2 2 1 1 Weapon . | . 1 2 . . . Tool/Special . | . . . . . . Unused Backups 7 | . 1 . 6 . . Power . | . . . . . . Propulsion 2 | . . . 2 . . Utility 3 | . . . 3 . . Weapon 2 | . 1 . 1 . . Tool/Special . | . . . . . . Average Slot Usage (%) 89 | . 92 81 85 91 90 Engine 8 | . 14 11 9 4 3 Core 1 | . . . . 3 4 Treads 20 | . 27 7 15 20 22 Device 5 | . 11 2 3 . 7 Storage 2 | . 9 14 . . . Processor 13 | . . . 18 18 17 Protection 7 | . . 5 8 15 4 Energy Gun 4 | . 14 20 1 . . Ballistic Gun 3 | . 14 3 1 . . Impact Weapon 15 | . . . 13 26 27 Slashing Weapon 3 | . . . 9 . . Peak Build Rating 29 | 5 10 9 21 29 28 Average Rating 17 | 3 8 6 15 26 23 On Entrance 11 | . 5 9 7 20 28 Avg Prop Armor Cover (%) 3 | . . . . 3 4 Naked Turns . | . . . . . . Heaviest Build 32 | 9 15 15 27 32 32 Greatest Support 66 | 40 40 40 46 66 60 Greatest Overweight (x) 10 | . . 2 7 10 4 Average Overweight (x) . | . . . . . . Largest Inventory Capacity 5 | 5 5 5 5 5 5 Average Capacity 5 | 5 5 5 5 5 5 Most Carried 5 | 5 5 5 5 5 5 Average Carried 4 | . 3 4 4 4 2 Final Capacity 5 | 5 5 5 5 5 5 Final Carried 5 | . 5 4 5 4 . Class Distribution -------------------- 48% | Scavenger-Gladiator 24% | Mutant 18% | Gladiator 5% | Scavenger-Mutant Dominant Class ---------------- Mutant | -10/Materials Mutant | -10/Mines Scavenger-Gladiator | -9/Materials Gladiator | -8/Materials Scavenger-Gladiator | -8/Storage Resources | -11 -10 -10 -9 -8 -8 ----------- Run | Yrd Mat Min Mat Mat Sto Matter Collected 1768 | 238 463 50 641 241 135 Remotely . | . . . . . . Salvage Created 6178 | . 524 22 1851 2361 1420 Parts 212 | . 35 3 90 54 30 Haulers Intercepted 15 | . 1 . 4 6 4 Recyclers Shooed 2 | . . . 1 1 . Parts Field Recycled . | . . . . . . Retrieved Matter . | . . . . . . Parts Self-Destructed . | . . . . . . Prevented . | . . . . . . Parts Restored . | . . . . . . Kills | -11 -10 -10 -9 -8 -8 ------- Run | Yrd Mat Min Mat Mat Sto Combat Hostiles Destroyed 112 | . 16 3 36 31 26 Melee 32 | . . . 8 16 8 Guns 37 | . 16 3 18 . . Classes Destroyed 14 | . 5 1 7 1 . Worker 16 | . . . 3 4 9 Builder 5 | . . . 1 3 1 Tunneler 1 | . . . 1 . . Hauler 15 | . 1 . 4 6 4 Recycler 16 | . . . 4 10 2 Mechanic 2 | . . . 2 . . Operator 8 | . 2 . 3 2 1 Watcher 11 | . 2 . 4 5 . Swarmer 33 | . 6 2 14 3 8 Grunt 52 | . 10 . 12 18 12 Duelist 1 | . . . 1 . . Sentry 23 | . . . 9 8 6 Demolisher 1 | . . 1 . . . Hunter 2 | . . . . 2 . Best Kill Streak 16 | . 4 2 11 16 9 Combat Bots Only 15 | . 4 2 11 15 5 Max Kills in Single Turn 1 | . 1 1 1 1 1 Gunslinging . | . . . . . . Exploded . | . . . . . . Melee 1 | . . . 1 1 1 Uniques/NPCs Destroyed . | . . . . . . Combat | -11 -10 -10 -9 -8 -8 -------- Run | Yrd Mat Min Mat Mat Sto Hostile Shots Fired 645 | . 56 13 230 207 139 Missed 150 | . 13 2 62 44 29 Hits 495 | . 43 11 168 163 110 Melee 4 | . . . 4 . . Projectile 491 | . 43 11 164 163 110 AOE 10 | . . 10 . . . Critical Strikes 23 | . 1 . 6 12 4 Damage Taken 6785 | . 473 454 2045 2317 1496 Core 1098 | . 60 126 359 323 230 Absorbed by Shields . | . . . . . . Regen/Repaired (Parts) 427 | . 94 . 253 80 . Core Remaining (%) 45 | 100 . 25 10 . . Volleys Fired 99 | . 53 7 39 . . Largest 3 | . 2 2 3 . . Hottest 149 | . 88 105 149 . . Shots Fired 181 | . 104 11 66 . . Gun 181 | . 104 11 66 . . Cannon . | . . . . . . Launcher . | . . . . . . Special . | . . . . . . Kinetic 92 | . 53 1 38 . . Thermal 70 | . 42 7 21 . . Explosive . | . . . . . . Electromagnetic 19 | . 9 3 7 . . Robot Hit Streak 10 | . 10 5 10 . . Robot Miss Streak 14 | . 14 4 3 . . Penetration Max . | . . . . . . Secondary Targets 8 | . 2 . 6 . . Max Gunslinging Chain 1 | . 1 . 1 . . Shots Hit Robots 461 | . 76 11 137 152 85 Core Hits 136 | . 61 10 34 21 10 Critical Kills 9 | . . . 1 6 2 Critical Parts Destroyed 75 | . . . 18 34 23 Critical Strikes 92 | . . . 25 42 25 Corrupt 1 | . . . 1 . . Smash 89 | . . . 22 42 25 Sever 2 | . . . 2 . . Melee Attacks 372 | . . . 105 170 97 Impact 340 | . . . 74 169 97 Slashing 32 | . . . 31 1 . Piercing . | . . . . . . Sneak Attacks 75 | . . . 19 36 20 Combat Hostiles 3 | . . . 1 1 1 Follow-up Attacks 59 | . . . 13 27 19 Damage Inflicted 18710 | . 1059 122 4591 8262 4676 Guns 1860 | . 1016 122 722 . . Cannons . | . . . . . . Explosions 40 | . 40 . . . . Melee 16807 | . . . 3869 8262 4676 Ramming 3 | . 3 . . . . Kinetic 861 | . 449 18 394 . . Thermal 894 | . 534 69 291 . . Explosive . | . . . . . . Electromagnetic 145 | . 73 35 37 . . Impact 15909 | . . . 3000 8233 4676 Slashing 898 | . . . 869 29 . Piercing . | . . . . . . Highest Corruption 15 | . . . 4 . 15 Average Corruption 10 | . . . 4 . 12 Corruption Purged . | . . . . . . Corruption Blocked . | . . . . . . Effects 27 | . . . 4 . 23 Message Errors 5 | . . . . . 5 Matter Fused 5 | . . . 1 . 4 Heat Flow Errors 3 | . . . . . 3 Energy Discharges 4 | . . . 1 . 3 Parts Rejected 1 | . . . . . 1 Data Loss (minor) 5 | . . . 1 . 4 Data Loss (major) 3 | . . . 1 . 2 Misdirections 1 | . . . . . 1 Overload Shots . | . . . . . . Overflow Damage 6118 | . . . 1377 2713 2028 Projectiles . | . . . . . . Explosions . | . . . . . . Melee 6118 | . . . 1377 2713 2028 Knockbacks 51 | . . . 8 27 16 Impact 44 | . . . 6 24 14 Kinetic . | . . . . . . Secondary 7 | . . . 2 3 2 Self-Inflicted Damage 35 | . 35 . . . . Shots 1 | . 1 . . . . Rammed 1 | . 1 . . . . Targets Rammed 1 | . 1 . . . . Kicked . | . . . . . . Crushed . | . . . . . . Highest Temperature 384 | . 162 137 384 8 241 Average Temperature 63 | . 42 52 94 4 98 Received Heat Transfer 2502 | . 186 12 522 1116 666 Effects 1 | . . . . . 1 Interference 1 | . . . . . 1 Siege Activations . | . . . . . . Martial Activations . | . . . . . . Shielding Activations . | . . . . . . Robots Disrupted . | . . . . . . Combat Hostiles . | . . . . . . Robots Corrupted 64 | . . . 14 25 25 Combat Hostiles 43 | . . . 10 15 18 Parts Fried 88 | . . . 21 40 27 Impact Corruptions 195 | . . . 42 89 64 Robots Melted . | . . . . . . Combat Hostiles . | . . . . . . Parts Melted . | . . . . . . Heat Transferred 1334 | . 610 95 629 . . Parts Sabotaged . | . . . . . . Parts Stolen . | . . . . . . Parts Stripped . | . . . . . . Power Chain Reactions 1 | . 1 . . . . Alert | -11 -10 -10 -9 -8 -8 ------- Run | Yrd Mat Min Mat Mat Sto Maximum Alert Level 2 | . 1 . 1 2 2 Low Security (%) 70 | 100 94 100 70 68 25 Level 1 22 | . 5 . 29 8 60 Level 2 7 | . . . . 22 14 Level 3 . | . . . . . . Level 4 . | . . . . . . Level 5 . | . . . . . . High Security . | . . . . . . Max Security . | . . . . . . Peak Influence 537 | . 213 76 276 537 511 Initial 156 | . . 76 15 84 156 Average 167 | . 57 32 153 243 279 Influence Increases 3468 | . 475 80 1051 1075 787 Destroy 0b10 Robot/C 2240 | . 320 60 720 620 520 Destroy 0b10 Robot/NC 370 | . 25 . 110 150 85 Destroy Leader 622 | . 66 20 196 192 148 Successful Hack 66 | . 14 . 10 38 4 Disable Machine 45 | . . . 15 15 15 Destroy Structure 5 | . 5 . . . . Lose Combat Pursuer 120 | . 45 . . 60 15 Influence Decreases 2957 | . 278 237 890 905 647 Entered New Map 478 | . . 121 25 117 215 Time Decay 1789 | . 278 56 575 538 342 Lost Part 390 | . . 60 140 100 90 Purge Threat 300 | . . . 150 150 . Squads Dispatched 18 | . 2 . 4 5 7 Investigation 5 | . 1 . 1 2 1 Extermination . | . . . . . . Reinforcement 9 | . 1 . 3 3 2 Assault . | . . . . . . Garrison 4 | . . . . . 4 Intercept . | . . . . . . Searches Triggered . | . . . . . . Construction Impeded . | . . . . . . Haulers Reinforced . | . . . . . . Active Scanning Responses . | . . . . . . Cargo Convoy Interrupts . | . . . . . . Stealth | -11 -10 -10 -9 -8 -8 --------- Run | Yrd Mat Min Mat Mat Sto Distress Signals 9 | . 2 . 4 2 1 Communications Jammed . | . . . . . . Distress Signals . | . . . . . . Times Spotted 160 | . 25 6 51 39 39 Peak Tracking Total 10 | . 5 2 10 10 5 Tactical Retreats 11 | . 2 . . 3 6 ECM-based Alert Blocks 11 | . . . . . 11 Traps | -11 -10 -10 -9 -8 -8 ------- Run | Yrd Mat Min Mat Mat Sto Traps Triggered 5 | . . . 4 1 . Indirectly . | . . . . . . Trap Hack Attempts . | . . . . . . Triggered . | . . . . . . Disarmed 5 | . 1 . . 4 . Reprogrammed . | . . . . . . Reused . | . . . . . . Traps Extracted . | . . . . . . Installed . | . . . . . . Triggered . | . . . . . . Machines | -11 -10 -10 -9 -8 -8 ---------- Run | Yrd Mat Min Mat Mat Sto Machines Disabled 3 | . . . 1 1 1 Max in Single Turn 1 | . . . 1 1 1 Garrison Access 1 | . . . . 1 . Machines Repaired . | . . . . . . Machines Dismantled . | . . . . . . Machines Sabotaged . | . . . . . . Overloaded Fab Kills . | . . . . . . Hacking | -11 -10 -10 -9 -8 -8 --------- Run | Yrd Mat Min Mat Mat Sto Machines Accessed 32 | . 7 . 11 11 3 Terminals 19 | . 6 . 5 5 3 Fabricators . | . . . . . . Repair Stations 5 | . 1 . 2 2 . Recycling Units 3 | . . . 2 1 . Scanalyzers 4 | . . . 2 2 . Garrison Access 1 | . . . . 1 . Total Hacks 97 | . 24 . 31 36 6 Successful 54 | . 11 . 18 23 2 Failed 42 | . 13 . 13 12 4 Catastrophic 5 | . 2 . 1 . 2 Database Lockouts 1 | . . . . 1 . Manual 6 | . 4 . . . 2 Terminals 50 | . 17 . 14 13 6 Fabricators . | . . . . . . Repair Stations 24 | . 7 . 8 9 . Recycling Units 5 | . . . 2 3 . Scanalyzers 16 | . . . 7 9 . Garrison Access 2 | . . . . 2 . Terminal Hacks 23 | . 7 . 6 8 2 Robot Analysis 2 | . . . 1 . 1 Prototype ID Bank 3 | . 2 . 1 . . Open Door 1 | . . . . . 1 Emergency Access Points 2 | . . . 2 . . Alert Level 2 | . 1 . 1 . . Unreport Threat 2 | . . . 1 1 . Locate Traps 4 | . 2 . . 2 . Disarm Traps 6 | . 2 . . 4 . Hauler Manifests 1 | . . . . 1 . Fabricator Hacks . | . . . . . . Repair Station Hacks 14 | . 4 . 6 4 . Scan Component 8 | . 2 . 3 3 . Repair 6 | . 2 . 3 1 . Recycling Unit Hacks 4 | . . . 2 2 . Retrieve Components 4 | . . . 2 2 . Scanalyzer 12 | . . . 4 8 . Insert Component 3 | . . . . 3 . Analyze 3 | . . . . 3 . Retrieve Study 6 | . . . 4 2 . Garrison Access Hacks 1 | . . . . 1 . Seal Access 1 | . . . . 1 . Unauthorized Hacks . | . . . . . . Terminals . | . . . . . . Fabricators . | . . . . . . Repair Stations . | . . . . . . Recycling Units . | . . . . . . Scanalyzers . | . . . . . . Garrison Access . | . . . . . . Data Cores Recovered 1 | . 1 . . . . Used . | . . . . . . Hacking Detections 24 | . 6 . 7 9 2 Full Trace Events 6 | . 1 . 1 3 1 Feedback Events . | . . . . . . Feedback Blocked . | . . . . . . Robot Schematics Acquired . | . . . . . . Robots Built . | . . . . . . Authchips . | . . . . . . Time . | . . . . . . Total Robot Build Rating . | . . . . . . Part Schematics Acquired 2 | . . . . 2 . Parts Built . | . . . . . . Authchips . | . . . . . . Time . | . . . . . . Total Part Build Rating . | . . . . . . Part Studies Acquired 6 | . . . 4 2 . Parts Repaired 6 | . 2 . 3 1 . Time 180 | . 52 . 96 32 . Parts Recycled . | . . . . . . Recycled Matter . | . . . . . . Retrieved Matter . | . . . . . . Retrieved Components 11 | . . . 11 . . Parts Scanalyzed 3 | . . . . 3 . Part Schematics Acquired 2 | . . . . 2 . Parts Damaged . | . . . . . . Bothacking | -11 -10 -10 -9 -8 -8 ------------ Run | Yrd Mat Min Mat Mat Sto Used RIF Installer . | . . . . . . Robots Hacked . | . . . . . . Non-combat . | . . . . . . Combat . | . . . . . . Robot Hacks Applied . | . . . . . . Relay Couplers Released . | . . . . . . Fabnet Peak Effective % . | . . . . . . Robots Rewired . | . . . . . . Allies Hacked . | . . . . . . Hacks Repelled . | . . . . . . Allies | -11 -10 -10 -9 -8 -8 -------- Run | Yrd Mat Min Mat Mat Sto Total Allies . | . . . . . . Largest Group . | . . . . . . Highest-Rated Group . | . . . . . . Highest-Rated Ally . | . . . . . . Total Orders . | . . . . . . Ally Attacks . | . . . . . . Total Damage . | . . . . . . Kills . | . . . . . . Allies Corrupted . | . . . . . . Allies Melted . | . . . . . . Intel | -11 -10 -10 -9 -8 -8 ------- Run | Yrd Mat Min Mat Mat Sto Active Infowar (turns) 2699 | . . . 1897 438 364 Optics 2335 | . . . 1897 438 . ECM 364 | . . . . . 364 Robot Analysis Total 2 | . . . 1 . 1 Derelict Logs Recovered . | . . . . . . Drone Launches . | . . . . . . Drone Recoveries . | . . . . . . Exploration | -11 -10 -10 -9 -8 -8 ------------- Run | Yrd Mat Min Mat Mat Sto Turns Passed 6055 | 48 1292 139 2270 1528 778 Spaces Moved 2524 | 34 581 120 987 557 245 Core 58 | 14 . 6 26 9 3 Treads 2181 | 20 581 20 809 509 242 Legs 39 | . . . . 39 . Wheels 168 | . . 94 74 . . Hover 24 | . . . 24 . . Flight 54 | . . . 54 . . Fastest Speed 37 | 50 160 80 37 160 160 Average Speed 154 | 114 160 95 150 168 161 Slowest Speed 550 | 160 160 160 440 550 250 Overloaded Moves . | . . . . . . Propulsion Burnouts . | . . . . . . Robots Hopped 1 | . . . 1 . . Potential Cave-ins . | . . . . . . Cave-ins Triggered . | . . . . . . Exploration Rate (%) 47 | 3 89 18 70 63 44 Regions Visited 5 Branch Regions 2 Pre-discovered Areas . | . . . . . . Known Exits Taken . | . . . . . . Unknown Exits Taken 5 | 1 1 1 1 1 . Scrap Searched 1 | . . 1 . . . Spaces Dug . | . . . . . . Terrain Destroyed 2 | . 2 . . . . Melee . | . . . . . . Projectile . | . . . . . . AOE 2 | . 2 . . . . Terrain Rammed . | . . . . . . Walls Destroyed . | . . . . . . Machines Disabled . | . . . . . . Actions | -11 -10 -10 -9 -8 -8 --------- Run | Yrd Mat Min Mat Mat Sto Total 3938 | 43 849 131 1568 873 474 Wait 804 | . 186 . 343 140 135 Move 2517 | 33 580 119 984 556 245 Hop 1 | . . . 1 . . Pick Up 67 | 5 10 . 31 14 7 Fast Attach 38 | . 3 4 25 6 . Attach 50 | 5 1 1 25 10 8 Detach 5 | . . . 4 1 . Swap 22 | . 7 . 4 8 3 Drop 52 | . 8 . 28 11 5 Fire 99 | . 53 7 39 . . Melee 282 | . . . 84 127 71 Ram . | . . . . . . Kick . | . . . . . . Crush 1 | . 1 . . . . Escape Stasis . | . . . . . . Rewire . | . . . . . . Trap . | . . . . . . Miscellaneous . | . . . . . . Route ------- -11/Scrapyard -10/Materials (discovered 4 exits: *Mat x2 / [*Min] / [*Sub]) -10/Mines -9/Materials (discovered 2 exits: *Mat x2) -8/Materials (discovered 2 exits: [*Fac] / *Sto) -8/Storage History --------- Turn | Location | Event 6 | -11/Scrapyard | Discovered new exit (range 15) 49 | -11/Scrapyard | Entered Materials 341 | -10/Materials | Build established: Mutant 468 | -10/Materials | Discovered new exit (range 16) 598 | -10/Materials | Discovered new exit (range 5) 722 | -10/Materials | Discovered new exit (range 10) 767 | -10/Materials | Repaired Lgt. Treads 959 | -10/Materials | Repaired Lgt. Treads 1133 | -10/Materials | Discovered new exit (range 11) 1341 | -10/Materials | Entered Mines 1342 | -10/Mines | Assembled infested the area 1377 | -10/Mines | Core integrity fell below 50% 1408 | -10/Mines | Lost 5 parts (1p2n1u1w) 1452 | -10/Mines | Discovered new exit (range 9) 1480 | -10/Mines | Entered Materials 1480 | -9/Materials | Evolved 2 slots: Utility x1, Weapon x1 1688 | -9/Materials | Destroyed 11 combat bots 1690 | -9/Materials | Lost 3 parts (1p1n1w) 1762 | -9/Materials | Lost 3 parts (2u1w) 1906 | -9/Materials | Lost 4 parts (2p1n1u) 1965 | -9/Materials | Build established: Scavenger-Mutant 2226 | -9/Materials | Repaired Lgt. Treads+ 2265 | -9/Materials | Repaired Katana 2308 | -9/Materials | Discovered new exit (range 18) 2427 | -9/Materials | Core integrity fell below 50% 2561 | -9/Materials | Build established: Scavenger-Gladiator 3185 | -9/Materials | Repaired Hrd. Light Armor Plating 3296 | -9/Materials | Core integrity fell below 20% 3367 | -9/Materials | Discovered new exit (range 13) 3750 | -9/Materials | Entered another Materials area 3750 | -8/Materials | Evolved 2 slots: Propulsion x1, Utility x1 4067 | -8/Materials | Central database locked down 4572 | -8/Materials | Discovered new exit (range 12) 4740 | -8/Materials | Discovered new exit (range 9) 4801 | -8/Materials | Repaired Imp. Treads+ 4841 | -8/Materials | Build established: Gladiator 4879 | -8/Materials | Lost 3 parts (1p2n) 4979 | -8/Materials | Destroyed 15 combat bots 5076 | -8/Materials | Core integrity fell below 50% 5278 | -8/Materials | Entered Storage 5426 | -8/Storage | Build established: Scavenger-Gladiator 5588 | -8/Storage | System corruption reached 10% 5731 | -8/Storage | Garrison activated, responded to threat 5939 | -8/Storage | Core integrity fell below 20% 6042 | -8/Storage | Garrison activated, responded to threat 6056 | -8/Storage | Destroyed by G-47 Trooper with Particle Gun Last Messages --------------- G-47 Trooper system corrupted by crushing effect. G-47 Trooper system terminally corrupted. Lgt. Treads+ destroyed. Y-45 Defender suffers critical hit (Smash). Destroyed Imp. Ion Engine. Y-45 Defender system corrupted by crushing effect. Great Maul+ follow-up attack on Y-45 Defender. Y-45 Defender suffers critical hit (Smash). Destroyed Heat Sink. Y-45 Defender system corrupted by crushing effect. Y-45 Defender system terminally corrupted. Beam Rifle fried. Melee Analysis Suite destroyed. Destroyed Heat Sink. Y-45 Defender system corrupted by crushing effect. Great Maul+ follow-up attack on Y-45 Defender. Y-45 Defender calls for garrison reinforcements. ALERT: Activating Garrison Access S001. Y-45 Defender system terminally corrupted. Acquired 10 matter. Map ----- +----------------------------------------------------+ | #??##"T"#####???????????????????????????????????? | | !#??# % #???????????????????????????????????? | | !#??# ##???????????????????????????????????? | | !#??# """#????????????????????????????????????? | | ##??# """#????????????????????????????????????? | | ##### """#????????????????????????????????????? | | # #????????????????????????????????????? | | "[[ # """#????????????????????????????????????? | | "%[[# """#????????????????????????????????????? | | "[[ # = """#?????????????? #????????????????????? | | =% # % #???????????? #?????????????????????? | | [%% # %%! #######???? #?????????????????????? | | #+######+#### #?? #?????????????????????? | | *%% %[ # #?????????????????????? | | % + """ ??????????????????????? | | % # "G T?????????????????????? | | ########## #??"" #?????????????????????? | | %#????????## ##???? #?????????????????????? | | % #?????????# #????######?????????????????????? | | #???????### ##### #?????????????????????? | | !=/#???????# #?????????????????????? | | =/%#???????# ^ +?????????????????????? | | %#???????# g #?????????????????????? | | #???##########+#### = #?????????????????????? | | #???# #?##=##?????????????????????? | | #???#[ ####@##/#####???????????????? | | #+##???# +==!%Y[* ????????? | | ???# """"" """"" ########## ##???????????????? | | ""??? """"" """"" #???????????????????????????? | | """???""""" """"" #???????????????????????????? | | """ #???###########???????????????????????????? | | #?????????????????????????????????????????? | | ??????????????????????????????????????????? | | #######??????????????????????????????????????????? | | ?????????????????????????????????????????????????? | | ?????????????????????????????????????????????????? | | ?????????????????????????????????????????????????? | | ?????????????????????????????????????????????????? | | ?????????????????????????????????????????????????? | | ?????????????????????????????????????????????????? | | ?????????????????????????????????????????????????? | | ?????????????????????????????????????????????????? | | ?????????????????????????????????????????????????? | | ?????????????????????????????????????????????????? | | ?????????????????????????????????????????????????? | | ?????????????????????????????????????????????????? | | ?????????????????????????????????????????????????? | | ?????????????????????????????????????????????????? | | ?????????????????????????????????????????????????? | | ?????????????????????????????????????????????????? | +----------------------------------------------------+ Best States ------------- Heat Dissipation 50 Energy Generation 14 Energy Capacity 265 Matter Stores 450 Matter Capacity 450 Sight Range 18 Terrain Scan Density 10 ECM Strength 1 Additional Mass Support 6 Armor Coverage 600 Evasion (%) 62 Melee Accuracy 10 Recoil Reduction 3 Item Schematics ----------------- Great Maul | -8/Materials | Scanalyzed Lgt. Nuclear Core | -8/Materials | Scanalyzed Robot Schematics ------------------ None Fabricated ------------ Nothing Repaired ---------- Lgt. Treads | 75% | -10/Materials Lgt. Treads | 57% | -10/Materials Lgt. Treads | 62% | -9/Materials Katana | 58% | -9/Materials Hrd. Light Armor Plating | 1% | -9/Materials Imp. Treads | 48% | -8/Materials Studied --------- Maul | -9/Materials | Hacked Lgt. Treads | -9/Materials | Hacked Ion Engine | -9/Materials | Hacked Hvy. Hammer | -9/Materials | Hacked Great Maul | -8/Materials | Hacked Imp. Treads | -8/Materials | Hacked Alien Tech Used ----------------- None Achievements -------------- Hammer Time Universal Adapter Challenges ------------ None Game ------ Seed StormImpactPower Manual? 0 Play Time 01:00:50 Cumulative 34.9 hours Start 2026.01.06 @ 03:37:12 End 2026.01.06 @ 04:34:25 Sessions 1 Manual Loads 0 Difficulty Rogue Special Mode None Game No. 71 Rogue 68 Adventurer 0 Explorer 3 Win Type - Total 0 Types 0/0/0/0/0/0/0/0/0/0 Lore% 17 Gallery% 30 Achievement% 21 Wizard Run 0 Options --------- Layout 0 ASCII 0 Keyboard 0 Movement Mouse Keybinds 0 Fullscreen 2 Font 18/SmallcapsGlow Map View 76x50 Zoom Use 0% Tactical HUD 0 Map Filters NONE Filters NONE Steam 1 RUN: 6491a92b-9475-48bc-adc8-30973fca6bb3